bitfinex/quotes_ETHUSD_20220215
["timestamp","ask_amount","ask_price","bid_price","bid_amount"]
[1644947521250,0.00700655,3100.1,3099.9,1.61195142]
[1644947521450,0.00286879,3100.1,3099.9,1.61195142]
[1644947521651,0.81069776,3100.2,3099.9,1.61195142]
[1644947524399,0.00286897,3099.8,3099.5,0.80664]
[1644947524997,0.00700673,3099.8,3099.5,0.80664]
[1644947525398,0.00413776,3099.8,3099.5,1.61328]
[1644947525598,0.00286895,3099.8,3099.5,1.61328]
[1644947525799,0.00286895,3099.8,3099.6,0.8066]
[1644947526499,0.80663,3099.9,3099.6,0.8066]
[1644947526698,0.81076776,3099.9,3099.8,0.80663]
[1644947526902,0.80949892,3099.9,3099.8,0.80663]
[1644947527652,0.80663,3099.9,3099.8,0.80663]
[1644947528049,0.80663,3099.9,3099.4,1.61327]
[1644947528249,0.81076776,3099.9,3099.7,0.80667]
[1644947528647,0.00413776,3099.9,3099.7,0.80667]
[1644947529346,0.0027828,3100.0,3099.7,0.80667]
[1644947530046,0.0027828,3100.0,3099.7,1.61325]
[1644947530348,0.0027828,3100.0,3099.1,1.61311]
[1644947530349,0.00413776,3100.1,3098.4,0.3139]
[1644947530547,0.00278278,3100.0,3098.5,1.37698228]
[1644947530749,0.00278278,3100.0,3098.6,1.37419812]
[1644947530948,0.80945848,3100.0,3098.7,1.37419812]
[1644947531196,0.80676,3099.6,3098.9,1.61355]
[1644947531398,0.00413776,3099.5,3099.0,0.80679]
[1644947531595,0.00261279,3099.5,3099.0,0.80679]
[1644947532202,0.80673,3099.4,3099.1,0.80672]
[1644947532397,0.81086776,3099.4,3099.1,0.80672]
[1644947532794,0.81348059,3099.4,3099.1,0.80672]
[1644947533597,0.81348059,3099.4,3099.1,1.61344]
[1644947533797,0.81086776,3099.4,3099.2,0.8067]
[1644947533997,0.80673,3099.4,3099.2,0.8067]
[1644947534197,0.80916382,3099.4,3099.2,0.8067]
[1644947535058,0.80669,3099.5,3099.2,1.6134]
[1644947535252,0.00413776,3099.4,3099.3,0.80667]
[1644947535451,0.00244908,3099.5,3099.2,0.8067]
[1644947536250,0.00413776,3099.6,3099.2,0.8067]
[1644947536551,0.00244906,3099.5,3099.2,1.61339]
[1644947536951,0.80913906,3099.5,3099.2,0.8067]
[1644947537154,0.81327682,3099.5,3099.2,0.8067]
[1644947537356,0.81082776,3099.5,3099.2,1.61337]
[1644947537754,0.81345314,3099.5,3099.2,1.61337]
[1644947537955,0.80931538,3099.5,3099.2,1.61337]
[1644947538155,0.00262538,3099.5,3099.2,1.61337]
[1644947538597,0.81079776,3099.6,3099.3,0.80666]
[1644947538796,0.81079776,3099.6,3099.4,0.80666]
[1644947539000,0.00263415,3099.5,3099.3,0.80666]
[1644947539802,0.81079776,3099.6,3099.3,0.80666]
[1644947540004,0.00677188,3099.6,3099.4,0.80666]
[1644947540405,0.00263412,3099.6,3099.4,0.80666]
[1644947541003,0.00413776,3099.8,3099.4,0.80666]
[1644947541004,0.00413776,3099.8,3099.5,0.8065225]
[1644947541201,0.00413776,3099.8,3099.5,2.4196425]
[1644947541202,0.00263677,3099.7,3099.5,2.4196425]
[1644947542204,0.00413776,3099.8,3099.5,2.4196425]
[1644947542449,0.00676228,3099.8,3099.6,0.80655]
[1644947542661,0.00676228,3099.8,3099.6,2.18065905]
[1644947542948,0.00676228,3099.8,3099.6,0.80655]
[1644947542949,0.00262452,3099.8,3099.6,0.80655]
[1644947543148,0.00676228,3099.8,3099.6,0.80655]
[1644947543349,0.00413776,3099.8,3099.6,0.80655]
[1644947543852,0.81073776,3099.8,3099.6,0.80655]
[1644947544250,0.81073776,3099.8,3099.6,0.80502759]
[1644947544452,0.81073776,3099.8,3099.5,0.80656]
[1644947544653,0.81073776,3099.8,3099.6,1.37410947]
[1644947544654,0.00413776,3099.8,3099.6,1.37410947]
[1644947544852,0.8066,3099.8,3099.6,1.37410947]
[1644947545058,0.61073776,3099.8,3099.6,1.37410947]
[1644947545451,0.61073776,3099.8,3099.6,2.18069947]
[1644947545650,0.61073776,3099.8,3099.6,0.80659]
[1644947546100,0.61073776,3099.8,3099.5,0.80656]
[1644947546302,0.61073776,3099.8,3099.6,1.37411472]
[1644947548102,1.41942308,3099.8,3099.5,0.80656]
[1644947548301,1.41942308,3099.8,3099.3,0.80666]
[1644947548501,0.61073776,3099.8,3099.4,1.37414653]
[1644947549503,0.61073776,3099.8,3099.5,1.61329]
[1644947549702,0.61336373,3099.8,3099.5,1.61329]
[1644947549946,0.00676373,3099.8,3099.6,1.37409826]
[1644947550347,0.00262597,3099.8,3099.6,1.37409826]
[1644947550750,0.00413776,3100.0,3099.7,0.80655]
[1644947550952,0.80918592,3099.9,3099.7,0.80655]
[1644947551550,1.61787124,3099.9,3099.7,0.80655]
[1644947551750,0.80918592,3099.9,3099.7,0.80655]
[1644947551949,0.80656,3099.9,3099.7,0.80655]
[1644947552150,1.61524532,3099.9,3099.5,0.80665]
[1644947552350,1.61524532,3099.9,3099.6,1.37412549]
[1644947552554,1.61524532,3099.9,3099.5,0.80665]
[1644947552950,0.80868532,3099.8,3099.5,0.80665]
[1644947553155,0.80656,3099.9,3099.5,0.80665]
[1644947553156,0.80868532,3099.9,3099.5,0.80665]
[1644947553352,0.80665,3099.7,3099.5,0.80665]
[1644947554301,0.80665,3099.7,3099.5,1.61328]
[1644947554700,0.80665,3099.7,3099.5,0.80665]
[1644947555302,0.80665,3099.7,3099.4,0.80668]
[1644947555502,0.80665,3099.7,3099.5,1.37413263]
[1644947556101,1.6133467,3099.7,3099.5,1.37413263]
[1644947556301,0.8067,3099.6,3099.5,1.37413263]
[1644947556500,0.8067,3099.6,3099.4,1.37413263]
[1644947556708,0.8067,3099.6,3099.5,1.37413263]
[1644947556902,0.8067,3099.6,3098.5,0.61161933]
[1644947557102,1.9436,3099.6,3098.6,1.37426957]
[1644947557347,1.9436,3099.6,3098.7,1.37426957]
[1644947557348,0.80681,3099.4,3098.7,1.37426957]
[1644947557551,0.80681,3099.4,3098.8,1.37426957]
[1644947558049,0.80681,3099.4,3098.9,1.67426957]
[1644947558253,0.80943614,3099.4,3099.0,1.37426957]
[1644947558450,1.61622164,3099.4,3099.1,1.37426957]
[1644947558649,0.80683,3099.3,3099.2,1.37426957]
[1644947558849,0.80683,3099.3,3098.9,0.8068]
[1644947559251,0.80683,3099.3,3099.0,1.37426957]
[1644947559449,0.80683,3099.3,3098.5,0.61161933]
[1644947559450,0.80683,3099.3,3099.1,1.37426957]
[1644947559650,0.80683,3099.3,3099.2,1.37426957]
[1644947559851,0.80931615,3099.4,3099.2,1.37426957]
[1644947560051,0.00262615,3099.4,3099.3,1.37426957]
[1644947560256,6.9653,3099.3,3098.5,0.61161933]
[1644947560556,6.9653,3099.3,3098.6,1.37429345]
[1644947560557,5.48895543,3099.2,3098.6,1.37429345]
[1644947560755,0.8068654,3099.1,3098.7,1.37429345]
[1644947560953,0.8068654,3099.1,3098.8,1.37429345]
[1644947560954,0.80689,3099.1,3098.8,1.37429345]
[1644947561205,1.64967791,3099.1,3098.9,1.37429345]
[1644947561405,1.64967791,3099.1,3098.5,0.00262698]
[1644947561599,1.64967791,3099.1,3098.3,1.37439335]
[1644947561899,1.64967791,3099.1,3098.5,0.00262686]
[1644947562498,0.80689,3099.1,3098.5,0.00262686]
[1644947562700,0.80689,3099.1,3098.5,0.80689]
[1644947562899,0.80689,3099.1,3098.6,1.37439335]
[1644947563301,0.80689,3099.1,3098.7,1.37439335]
[1644947563499,0.80689,3099.1,3098.8,1.37439335]
[1644947563698,0.80689,3099.1,3098.5,0.00262677]
[1644947563900,1.6137313,3099.1,3098.4,2.18125335]
[1644947564101,0.80686,3098.9,3098.5,1.37439335]
[1644947564301,0.80686,3098.9,3098.5,1.37702019]
[1644947564500,0.80686,3098.9,3098.6,0.80684]
[1644947564869,0.80686,3098.9,3097.5,1.61924318]
[1644947564870,15.97729508,3098.8,3097.5,1.61924318]
[1644947565074,15.97729508,3098.8,3096.9,0.61161933]
[1644947565075,1.61581102,3098.5,3096.9,0.61161933]
[1644947565268,30.19328532,3098.4,3096.8,0.61161933]
[1644947565467,30.19328532,3098.4,3096.6,0.61161933]
[1644947565468,21.66688642,3098.2,3096.6,0.61161933]
[1644947565664,0.2543,3097.6,3096.6,0.61161933]
[1644947565868,1.2096,3097.6,3096.7,3.5]
[1644947566565,1.2096,3097.6,3096.6,0.61161933]
[1644947566566,1.2096,3097.6,3096.6,2.22601933]
[1644947566764,1.2096,3097.6,3096.8,0.95294653]
[1644947566964,1.2096,3097.6,3096.8,1.76014653]
[1644947567164,1.2096,3097.6,3096.8,2.56736653]
[1644947567364,2.01679,3097.6,3096.8,2.06016653]
[1644947567865,2.01679,3097.6,3096.8,0.3]
[1644947568067,2.01679,3097.6,3096.6,1.6144]
[1644947568068,0.8072975,3097.5,3097.0,0.00286394]
[1644947568266,9.4253975,3097.5,3097.0,0.00286394]
[1644947568999,9.7253975,3097.5,3096.6,0.98229077]
[1644947569301,9.7253975,3097.5,3097.1,0.00286391]
[1644947569501,6.01624,3097.4,3097.1,0.00286391]
[1644947570101,6.01624,3097.4,3096.2,2.22608933]
[1644947570300,6.01624,3097.4,3096.8,1.02874219]
[1644947570503,0.13819996,3097.9,3097.1,0.00286391]
[1644947571301,0.13819996,3097.9,3096.8,1.32874219]
[1644947571502,0.80717,3097.6,3096.8,1.32874219]
[1644947571704,0.8072471,3097.5,3097.3,0.00161077]
[1644947572550,0.8072471,3097.5,3096.6,0.3]
[1644947572750,0.8072471,3097.5,3097.2,0.00160961]
[1644947572954,0.80726,3097.4,3097.2,0.00160961]
[1644947573347,1.9740762,3097.7,3097.2,0.00160961]
[1644947573751,1.9740762,3097.7,3096.8,0.98094603]
[1644947573947,1.1669,3097.7,3097.3,0.00160958]
[1644947574349,1.4669,3097.7,3097.3,0.00160958]
[1644947574950,0.80716,3097.6,3096.8,0.80717]
[1644947575150,0.80716,3097.6,3097.3,0.00285944]
[1644947575651,1.10716,3097.6,3097.3,0.00285944]
[1644947576101,1.10716,3097.6,3096.9,0.80713]
[1644947576307,1.1669,3097.7,3097.3,0.002857]
[1644947577102,1.1669,3097.7,3097.3,0.809897]
[1644947577302,1.1669,3097.7,3097.3,1.61407]
[1644947577503,1.1669,3097.7,3097.0,1.45027119]
[1644947577702,1.1669,3097.7,3097.3,0.00285698]
[1644947578202,59.89841073,3098.1,3097.3,0.00285698]
[1644947578404,5.6858,3098.1,3097.7,1.46639643]
[1644947578604,6.91947,3098.3,3097.7,1.46639643]
[1644947578807,0.80697,3098.3,3097.7,1.46639643]
[1644947579406,1.6139745,3098.3,3097.7,1.46639643]
[1644947579607,1.1070045,3098.3,3097.7,1.46639643]
[1644947579854,0.80706,3098.2,3097.7,1.46639643]
[1644947580052,0.80706,3098.2,3097.8,0.00285672]
[1644947581056,0.80706,3098.2,3097.7,1.46639643]
[1644947581255,1.10706,3098.2,3097.8,0.00285672]
[1644947581457,0.80706,3098.2,3097.8,0.00285672]
[1644947581854,0.80704,3098.1,3097.8,0.00285672]
[1644947582152,0.80704,3098.1,3097.7,1.46639643]
[1644947582353,0.80704,3098.1,3097.8,0.00285674]
[1644947583355,0.80704,3098.1,3097.7,1.46639643]
[1644947583801,0.80704,3098.1,3097.8,0.00286042]
[1644947584600,0.80704,3098.1,3097.7,1.46639643]
[1644947584999,0.80704,3098.1,3097.8,0.00286042]
[1644947585799,0.80704,3098.1,3097.7,1.46639643]
[1644947586197,1.10704,3098.1,3097.8,0.00286042]
[1644947586398,0.80712,3098.0,3097.8,0.00286042]
[1644947587099,0.80712,3098.0,3097.7,1.46639643]
[1644947587354,0.80712,3098.0,3097.7,1.46919251]
[1644947588154,1.10712,3098.0,3097.7,1.46639643]
[1644947588354,0.80714,3097.9,3097.7,9.643e-05]
[1644947588558,19.71714,3097.9,3097.7,9.254e-05]
[1644947588757,1.4866,3097.8,3097.7,9.254e-05]
[1644947589557,1.6147106,3097.5,3096.8,1.37506263]
[1644947589757,1.10735,3097.4,3096.3,3.5]
[1644947589956,1.10735,3097.4,3096.4,1.37507923]
[1644947589957,7.65058649,3097.4,3096.4,1.37507923]
[1644947590156,7.65058649,3097.4,3096.5,0.00395405]
[1644947590358,7.65058649,3097.4,3096.6,1.37507923]
[1644947590558,8.45795649,3097.4,3096.7,0.00395405]
[1644947590757,0.8073298,3097.1,3096.7,0.00395405]
[1644947590960,0.8073298,3097.1,3096.8,0.00260521]
[1644947591206,1.1073298,3097.1,3096.8,0.00260521]
[1644947591901,1.1073298,3097.1,3095.9,1.10693972]
[1644947592101,1.1073298,3097.1,3096.1,0.80738]
[1644947592302,1.1073298,3097.1,3096.8,0.00260523]
[1644947592900,0.80744,3096.9,3096.8,0.00260523]
[1644947593102,0.80744,3096.9,3096.2,0.00395405]
[1644947593302,1.10744,3096.9,3096.7,0.00395405]
[1644947593505,1.10744,3096.9,3096.8,0.00260523]
[1644947593703,1.93864,3096.9,3096.8,0.00260523]
[1644947594307,0.80744,3096.9,3096.6,1.37911495]
[1644947594502,0.80744,3096.9,3096.7,0.00657486]
[1644947594704,0.80744,3096.9,3096.7,0.00262081]
[1644947595353,1.10744,3096.9,3096.7,0.00262081]
[1644947595551,1.10744,3096.9,3096.5,1.37514331]
[1644947595552,0.80741,3096.8,3096.5,1.37514331]
[1644947595752,1.614818,3096.8,3096.6,1.38171819]
[1644947595953,1.614818,3096.8,3096.7,1.37515028]
[1644947596157,0.80741,3096.8,3096.6,0.00657488]
[1644947596354,0.80741,3096.8,3096.6,0.00262083]
[1644947596756,0.80741,3096.8,3096.4,0.00395405]
[1644947596958,0.8074228,3096.7,3096.5,1.37781064]
[1644947597155,0.80742,3096.6,3096.5,1.37781064]
[1644947597356,0.80742,3096.6,3096.5,1.38176469]
[1644947597955,0.80742,3096.6,3096.5,1.37914382]
[1644947598355,0.80742,3096.6,3096.5,0.00395405]
[1644947598614,0.80742,3096.6,3096.4,0.00261867]
[1644947598615,5.45404445,3096.7,3096.4,0.00261867]
[1644947598813,1.0,3096.6,3096.4,0.00261867]
[1644947599216,1.80742,3096.6,3096.4,0.00261867]
[1644947599414,1.80742,3096.6,3096.1,0.00395405]
[1644947599615,1.80742,3096.6,3096.4,0.00261867]
[1644947599813,3.42272,3096.6,3096.4,0.00261867]
[1644947600212,0.3,3096.5,3096.1,0.00395405]
[1644947600414,1.75664987,3096.4,3096.1,0.00395405]
[1644947600712,1.75664937,3096.4,3096.3,0.00261869]
[1644947600914,2.75664937,3096.4,3096.3,0.00261869]
[1644947601112,2.05664937,3096.4,3096.3,0.00261869]
[1644947601312,3.05664937,3096.4,3096.3,0.00261869]
[1644947601513,3.05664937,3096.4,3096.1,0.00395405]
[1644947601514,0.80766,3096.0,3095.2,0.00395405]
[1644947601714,0.8076324,3095.8,3095.7,0.01049161]
[1644947602112,0.8076324,3095.8,3095.7,1.38593982]
[1644947602113,1.1076324,3095.8,3095.7,1.38593982]
[1644947602352,1.1076324,3095.8,3095.7,1.38989387]
[1644947602749,1.1076324,3095.8,3095.7,1.37940226]
[1644947607412,2.7230224,3095.8,3095.7,1.37940226]
[1644947608408,3.9110547,3095.8,3095.7,1.37940226]
[1644947608807,3.9110547,3095.8,3095.7,0.00395405]
[1644947609007,0.8078131,3095.4,3095.1,0.00959977]
[1644947609208,1.6156331,3095.4,3095.2,1.37570961]
[1644947609408,1.9156331,3095.4,3095.2,1.37570961]
[1644947609608,1.9156331,3095.4,3095.2,1.37966366]
[1644947609851,1.9156331,3095.4,3095.3,1.37570961]
[1644947610060,1.9156331,3095.4,3095.3,1.37966366]
[1644947610253,3.5312631,3095.4,3095.3,1.37966366]
[1644947610654,2.4234392,3095.7,3095.3,1.37966366]
[1644947610655,0.8075878,3095.7,3095.3,1.37966366]
[1644947610856,1.249,3095.8,3095.4,1.37570961]
[1644947611053,1.249,3095.8,3095.5,0.00395405]
[1644947611254,1.249,3095.8,3095.6,1.37570961]
[1644947611455,2.7369,3096.8,3095.6,1.37570961]
[1644947611656,2.7369,3096.8,3095.7,2.28297089]
[1644947611657,3.230223,3096.6,3095.7,2.28297089]
[1644947611859,0.8075089,3096.0,3095.8,1.37570961]
[1644947612056,0.8075089,3096.0,3095.8,1.37966366]
[1644947612257,0.8075089,3096.0,3095.9,1.37570961]
[1644947612661,1.6150789,3096.0,3095.9,1.37570961]
[1644947612864,1.6150789,3096.0,3095.7,0.00243105]
[1644947612865,0.8075089,3096.0,3095.7,0.00243105]
[1644947613063,1.1075089,3096.0,3095.7,0.00243105]
[1644947613258,0.3,3095.9,3095.7,0.00243105]
[1644947613459,0.3,3095.9,3095.7,1.37814066]
[1644947613704,1.10768,3095.9,3095.8,1.37570961]
[1644947613904,1.10768,3095.9,3095.8,1.37966366]
[1644947614104,1.1075844,3095.9,3095.8,1.37966366]
[1644947614304,1.9152144,3095.9,3095.8,1.37966366]
[1644947616814,1.9152144,3095.9,3095.8,0.00395405]
[1644947617008,3.1388144,3095.9,3095.7,0.00242558]
[1644947617454,3.1388144,3095.9,3095.4,0.00395405]
[1644947617455,0.80762,3095.8,3095.4,0.00395405]
[1644947617654,1.6152171,3095.8,3095.7,0.00242558]
[1644947617858,1.10762,3095.8,3095.7,0.00242558]
[1644947618054,0.3,3095.8,3095.7,0.00242558]
[1644947618255,1.2236,3095.9,3095.7,1.37804895]
[1644947618256,1.5236,3095.9,3095.7,1.37804895]
[1644947618456,8.5753,3096.2,3096.1,0.35973125]
[1644947618656,1.61535,3096.2,3096.1,0.35973125]
[1644947619856,2.42299,3096.2,3096.1,0.35973125]
[1644947620856,0.80764,3096.2,3096.1,0.35973125]
[1644947629704,0.80764,3096.2,3096.1,1.73530278]
[1644947629908,0.80764,3096.2,3096.1,0.35973125]
[1644947630908,5.512066,3096.2,3096.1,0.35973125]
[1644947631111,5.512066,3096.2,3096.1,1.73533603]
[1644947632959,5.512066,3096.2,3096.1,0.35973125]
[1644947633260,6.012066,3096.2,3096.1,1.73535833]
[1644947633861,6.012066,3096.2,3096.1,1.73532211]
[1644947634260,5.512066,3096.2,3096.1,1.73532211]
[1644947634460,6.512066,3096.2,3096.1,1.73532211]
[1644947635261,5.512066,3096.2,3096.1,1.73532211]
[1644947638501,4.044895,3096.2,3096.1,1.73532211]
[1644947640264,4.044895,3096.2,3096.1,5.67258129]
[1644947640468,4.044895,3096.2,3096.1,5.06096196]
[1644947640864,4.044895,3096.2,3096.1,9.14608805]
[1644947641064,4.044895,3096.2,3096.1,5.52596196]
[1644947641573,4.044895,3096.2,3096.1,1.73532211]
[1644947643704,4.1136754,3096.2,3096.1,1.73532211]
[1644947651320,4.1136754,3096.2,3096.0,0.00260384]
[1644947651321,0.80777,3096.1,3096.0,0.00260384]
[1644947651514,5.17878911,3096.1,3096.0,0.00260384]
[1644947651715,1.80777,3096.1,3096.0,0.00260384]
[1644947652114,2.7840633,3096.1,3096.0,0.00260384]
[1644947652313,0.94476524,3095.5,3095.4,0.00395405]
[1644947652515,0.80777,3095.4,3095.2,0.62084531]
[1644947653616,2.4232967,3095.4,3094.9,0.61689126]
[1644947653816,2.4232967,3095.4,3094.5,7.28]
[1644947653817,0.80797,3095.2,3094.5,0.61689126]
[1644947654016,1.78957,3095.2,3094.4,0.61689126]
[1644947654860,0.808,3094.8,3094.4,0.61689126]
[1644947655660,0.808,3094.8,3094.3,0.61689126]
[1644947655865,0.8080375,3094.7,3094.3,0.61689126]
[1644947656061,1.61604,3094.6,3094.4,0.00283908]
[1644947657065,2.4240018,3094.6,3094.4,0.61689126]
[1644947657867,2.4240018,3094.6,3094.3,0.61973039]
[1644947658264,2.4240018,3094.6,3094.0,0.61689126]
[1644947658464,0.95606637,3094.6,3094.3,0.00158987]
[1644947659302,0.95606637,3094.6,3093.8,0.61689126]
[1644947659303,1.76402817,3094.6,3093.8,0.61689126]
[1644947659504,1.76402817,3094.6,3093.7,0.61689126]
[1644947659505,2.62562348,3094.4,3093.7,0.61689126]
[1644947659712,3.43383868,3094.4,3094.3,0.00283603]
[1644947660503,3.43383868,3094.4,3093.5,0.61689126]
[1644947660704,2.4242018,3094.2,3093.5,0.61689126]
[1644947661004,1.61614,3094.2,3093.7,0.01134603]
[1644947661807,0.8080197,3094.2,3093.6,0.61689126]
[1644947662006,0.8080197,3094.2,3093.8,0.00283629]
[1644947662957,1.6160897,3094.2,3093.5,0.61689126]
[1644947663155,0.8080887,3094.0,3093.4,0.61689126]
[1644947663355,0.8080887,3094.0,3093.8,0.00283626]
[1644947664156,0.8080887,3094.0,3093.6,0.61689126]
[1644947664359,0.8080887,3094.0,3093.7,0.00283631]
[1644947664560,1.1337,3094.5,3093.7,3.91671071]
[1644947664759,0.13819996,3094.8,3093.9,0.61689126]
[1644947664967,0.13819996,3094.8,3094.1,0.61689126]
[1644947665158,11.7636,3095.3,3094.2,3.6596205]
[1644947665159,9.0193,3095.3,3094.2,3.6596205]
[1644947665360,9.0193,3095.3,3094.3,1.0]
[1644947665561,0.807771,3095.1,3094.4,3.37769946]
[1644947665760,0.807771,3095.1,3094.3,4.14389777]
[1644947665965,0.807771,3095.1,3094.3,4.1467338]
[1644947666811,0.807771,3095.1,3094.4,0.3]
[1644947667008,0.8077292,3095.3,3094.5,0.8105859]
[1644947667211,0.8077292,3095.3,3094.6,3.31228839]
[1644947667411,0.8077292,3095.3,3094.5,0.3028359]
[1644947667615,8.0363583,3095.7,3094.5,0.3028359]
[1644947667812,8.03627,3095.7,3094.6,0.80768]
[1644947668114,0.25,3096.0,3094.9,1.0683011]
[1644947668314,0.25,3096.0,3095.0,3.49059139]
[1644947668714,4.044895,3096.2,3095.1,2.2725]
[1644947668914,4.044895,3096.2,3095.2,5.11878062]
[1644947669112,4.044895,3096.2,3095.3,0.465]
[1644947669312,4.044895,3096.2,3095.8,1.01231992]
[1644947669712,4.044895,3096.2,3095.8,2.11966992]
[1644947670658,4.044895,3096.2,3095.8,2.62852333]
[1644947670858,4.044895,3096.2,3095.8,1.61620341]
[1644947671258,0.25,3096.7,3095.9,4.54891956]
[1644947671460,0.25,3096.7,3096.0,1.23489334]
[1644947671661,1.185,3096.9,3096.1,1.23489334]
[1644947671859,0.12755292,3096.8,3095.8,0.00283267]
[1644947672061,0.93499292,3096.8,3095.8,1.23757075]
[1644947672259,1.1074113,3096.7,3095.8,1.23757075]
[1644947672563,1.1074113,3096.7,3095.8,1.23473808]
[1644947672959,1.1074113,3096.7,3096.1,0.00283254]
[1644947673811,1.1074113,3096.7,3095.8,1.23473808]
[1644947674214,1.1074113,3096.7,3096.2,0.00283246]
[1644947675008,1.9923678,3096.9,3095.9,1.23473808]
[1644947675208,1.9923678,3096.9,3096.0,1.23473808]
[1644947675411,0.3,3096.8,3096.3,0.00283243]
[1644947676308,0.3,3096.8,3095.9,1.23427586]
[1644947676506,1.10743,3096.8,3095.9,1.23427586]
[1644947676707,1.10743,3096.8,3096.4,0.00283238]
[1644947677557,1.10743,3096.8,3095.8,3.4566405]
[1644947677759,1.10743,3096.8,3096.4,0.00283236]
[1644947678159,0.3,3096.8,3096.4,0.00283236]
[1644947678361,1.485,3096.9,3096.4,0.00283236]
[1644947678859,1.485,3096.9,3096.1,1.22860671]
[1644947679058,0.13283613,3096.8,3096.4,0.00283236]
[1644947679258,0.13283613,3096.8,3096.4,0.00087037]
[1644947679459,2.55514513,3096.8,3096.4,0.00087037]
[1644947679662,0.13283613,3096.7,3096.4,0.00087037]
[1644947679960,1.74789463,3096.7,3095.3,0.00388062]
[1644947680162,0.13283613,3096.6,3095.4,1.22845505]
[1644947680464,1.81668312,3096.5,3095.5,0.3]
[1644947680759,1.81668312,3096.5,3095.6,1.22845505]
[1644947680760,2.11668312,3096.5,3095.6,1.22845505]
[1644947681606,1.30915312,3096.5,3095.6,1.22845505]
[1644947682408,0.3,3096.5,3095.6,1.22845505]
[1644947682607,0.3,3096.5,3095.9,0.00158845]
[1644947682807,9.1292,3096.7,3095.9,0.00158845]
[1644947683011,0.13283576,3096.6,3095.9,0.00158845]
[1644947683608,0.13283576,3096.6,3095.3,0.00388062]
[1644947683812,0.13283576,3096.6,3096.1,0.00283254]
[1644947684010,1.74778736,3096.6,3096.1,0.00283254]
[1644947684209,1.6149516,3096.6,3096.1,0.00283254]
[1644947684410,0.43284304,3096.5,3096.1,0.00283254]
[1644947684609,1.10753,3096.5,3096.1,0.00283254]
[1644947684858,1.10753,3096.5,3095.3,0.00388062]
[1644947685162,1.10753,3096.5,3094.0,8.91574194]
[1644947685163,0.8203969,3096.1,3094.6,0.8078]
[1644947685361,18.91,3095.9,3094.6,0.8078]
[1644947685563,0.465,3095.8,3094.6,0.8078]
[1644947685855,0.465,3095.8,3093.8,0.61689126]
[1644947685856,21.14393755,3095.8,3093.8,0.61689126]
[1644947686055,0.89366372,3095.3,3093.9,0.91734048]
[1644947686256,0.8078894,3095.0,3093.9,0.91734048]
[1644947686656,0.3,3095.0,3093.9,0.91734048]
[1644947687056,0.3,3095.2,3093.9,0.91734048]
[1644947687257,1.1979,3095.3,3093.9,1.53423174]
[1644947687258,1.4979,3095.3,3093.9,1.53423174]
[1644947687456,1.4979,3095.3,3094.3,0.00132916]
[1644947687856,2.4235122,3095.0,3094.3,0.00132916]
[1644947688259,2.7235122,3095.0,3094.3,0.00132916]
[1644947688456,2.7235122,3095.0,3093.9,2.34204174]
[1644947688706,2.7235122,3095.0,3094.5,0.00258263]
[1644947689406,0.80787,3094.9,3094.5,0.00258263]
[1644947689606,0.80787,3094.9,3093.9,0.91734048]
[1644947689808,1.9156722,3095.0,3093.9,0.91734048]
[1644947689809,0.80791,3094.7,3093.9,0.91734048]
[1644947690007,0.80791,3094.7,3094.6,0.00258258]
[1644947690008,1.10791,3094.7,3094.6,0.00258258]
[1644947690407,5.54936419,3094.7,3094.6,0.00258258]
[1644947690606,1.91585,3094.7,3094.6,0.00258258]
[1644947690808,7.34365,3094.7,3094.6,0.00258258]
[1644947691008,0.80795,3094.6,3093.6,1.18101636]
[1644947691206,0.80795,3094.6,3094.5,0.00258431]
[1644947692208,0.80795,3094.6,3093.5,0.61689126]
[1644947692209,0.80798,3094.4,3093.5,0.61689126]
[1644947692460,0.80798,3094.4,3093.9,0.01033898]
[1644947692658,1.10798,3094.4,3093.9,0.01033898]
[1644947692858,0.3,3094.4,3093.9,0.01033898]
[1644947693061,0.8079289,3094.5,3093.9,0.01033898]
[1644947693360,0.8079289,3094.5,3093.4,0.61689126]
[1644947693558,0.8079289,3094.5,3094.0,0.00258453]
[1644947693958,1.6158789,3094.5,3094.0,0.00258453]
[1644947694156,1.9158789,3094.5,3094.0,0.00258453]
[1644947694561,3.46955793,3094.4,3093.1,2.23276126]
[1644947694760,6.33235933,3094.4,3094.1,0.00258209]
[1644947694960,7.14034933,3094.4,3094.1,0.00258209]
[1644947695158,8.4482,3094.3,3094.1,0.00258209]
[1644947695559,8.4482,3094.3,3093.6,0.0103299]
[1644947695560,9.2562117,3094.3,3093.6,0.0103299]
[1644947695759,9.2562117,3094.3,3093.0,0.61689126]
[1644947695760,0.90944835,3094.0,3093.0,0.61689126]
[1644947695961,3.57146302,3094.2,3094.0,0.00258211]
[1644947696205,9.25628,3094.3,3094.0,0.00258211]
[1644947696407,0.80808,3094.1,3094.0,0.00258211]
[1644947696606,1.10808,3094.1,3094.0,0.00258211]
[1644947697007,0.3,3094.0,3093.0,0.61689126]
[1644947697208,0.3,3094.0,3093.9,0.00258217]
[1644947697711,0.25,3094.6,3093.9,0.00258217]
[1644947697908,4.716,3095.0,3093.9,0.00258217]
[1644947698107,4.716,3095.0,3093.7,0.465]
[1644947698706,1.18736127,3094.8,3093.7,0.465]
[1644947699308,12.3645941,3094.7,3093.7,0.465]
[1644947699706,12.6645941,3094.7,3093.7,0.465]
[1644947700154,13.4725741,3094.7,3093.7,0.465]
[1644947700354,0.80798,3094.4,3093.7,0.465]
[1644947700556,0.14785747,3094.5,3093.7,0.465]
[1644947700755,0.80799,3094.4,3094.0,0.00281059]
[1644947700961,2.10479,3094.4,3094.0,0.00281059]
[1644947701163,1.2086,3094.3,3094.0,0.00281059]
[1644947701357,0.79758435,3094.2,3094.0,0.00281059]
[1644947701754,0.80823,3094.1,3092.8,0.00384355]
[1644947701955,0.80823,3094.1,3094.0,0.00281062]
[1644947702156,4.52343,3094.1,3094.0,0.00281062]
[1644947702856,2.4246567,3093.8,3092.8,0.00384355]
[1644947703056,0.80822,3093.5,3093.4,0.01124435]
[1644947703457,5.2996,3093.7,3093.4,0.01124435]
[1644947703710,6.32574711,3093.7,3093.4,0.01124435]
[1644947703905,6.62574711,3093.7,3093.4,0.01124435]
[1644947704210,8.0241312,3093.7,3092.8,0.00384355]
[1644947704403,7.7241312,3093.7,3093.4,0.00281092]
[1644947705003,6.91596,3093.7,3093.4,0.00281092]
[1644947705204,6.91596,3093.7,3093.2,1.15349964]
[1644947705406,7.21596,3093.7,3093.2,1.15349964]
[1644947705606,7.21596,3093.7,3093.4,0.00281092]
[1644947705805,7.21596,3093.7,3093.4,1.15631056]